[Event "36th German Seniors-ch-65 2024"]
[Site "Bad Wildungen"]
[Date "2024.08.25"]
[Round "1.17"]
[White "Namyslo, Holger"]
[Black "Schwetje, Siegfried"]
[Result "1-0"]
[ECO "C22"]
[WhiteElo "2140"]
[BlackElo "1887"]
[Annotator "RC"]
[PlyCount "43"]
[EventDate "2024.08.22"]
[EventType "swiss"]
[EventCountry "GER"]
[SourceTitle "playchess.com"]
[Source "ChessBase"]
[SourceQuality "1"]
[TimeControl "40/5400+30:1800+30"]

1. e4 {[%emt 0:00:06]} e5 {[%emt 0:00:21]} 2. d4 {[%emt 0:00:06]} exd4 {[%emt 0:00:24]} 3. Qxd4 {[%emt 0:00:07]} Nc6 {[%emt 0:00:25]} 4. Qe3 {[%emt 0:00:20]} d6 {[%emt 0:01:43]} 5. Nc3 {[%emt 0:00:07]} Nf6 {[%emt 0:05:23]} 6. Bd2 {[%emt 0:00:56]} Be7 {[%emt 0:01:57]} 7. O-O-O {[%emt 0:00:19]} O-O {[%emt 0:01:26]} 8. f4 {[%emt 0:01:10]} Ng4 {[%emt 0:02:15]} 9. Qe1 {[%emt 0:00:22]} f5 {[%emt 0:04:32]} 10. h3 {[%emt 0:02:39]} Nf6 {[%emt 0:03:24]} 11. exf5 {[%emt 0:03:27]} Bxf5 {[%emt 0:04:45]} 12. g4 {[%emt 0:01:18]} Bg6 {[%emt 0:01:51]} 13. Nf3 {[%emt 0:05:03]} Re8 {[%emt 0:09:59]} 14. f5 {[%emt 0:03:48]} Bf8 {[%emt 0:04:22]} 15. Qg3 {[%emt 0:03:34]} Bf7 {[%emt 0:01:18]} 16. Ng5 {[%emt 0:01:06]} Qd7 {[%emt 0:04:26]} 17. Nxf7 {[%emt 0:03:59]} Qxf7 {[%emt 0:01:10]} 18. g5 {[%emt 0:02:38]} Ne4 {[%emt 0:02:28]} 19. Nxe4 {[%emt 0:04:41]} Rxe4 {[%emt 0:00:27]} 20. Kb1 {[%emt 0:00:50]} Qxf5 {[%emt 0:08:09]} 21. Qb3+ {[%emt 0:03:27]} Qe6 {[%emt 0:05:43]} 22. Qxb7 {[%emt 0:06:19]} 1-0

[Event "36th German Seniors-ch-65 2024"]
[Site "Bad Wildungen"]
[Date "2024.08.25"]
[Round "1.18"]
[White "Nemoj, Ilja"]
[Black "Kierzek, Matthias"]
[Result "1-0"]
[ECO "D00"]
[WhiteElo "1885"]
[BlackElo "2140"]
[Annotator "RC"]
[PlyCount "57"]
[EventDate "2024.08.22"]
[EventType "swiss"]
[EventCountry "GER"]
[SourceTitle "playchess.com"]
[Source "ChessBase"]
[SourceQuality "1"]
[TimeControl "40/5400+30:1800+30"]

1. d4 {[%emt 0:00:05]} d5 {[%emt 0:00:08]} 2. Bf4 {[%emt 0:00:20]} c5 {[%emt 0:00:11]} 3. e3 {[%emt 0:00:28]} Nc6 {[%emt 0:00:10]} 4. c3 {[%emt 0:00:25]} Nf6 {[%emt 0:00:36]} 5. Bd3 {[%emt 0:00:20]} e6 {[%emt 0:06:30]} 6. Nd2 {[%emt 0:01:04]} Bd6 {[%emt 0:03:15]} 7. Bg3 {[%emt 0:00:13]} e5 {[%emt 0:03:18]} 8. dxe5 {[%emt 0:03:18]} Nxe5 {[%emt 0:03:23]} 9. Bc2 {[%emt 0:00:21]} O-O {[%emt 0:02:45]} 10. Ne2 {[%emt 0:08:48]} b6 {[%emt 0:08:42]} 11. Nf4 {[%emt 0:04:19]} Ba6 {[%emt 0:04:06]} 12. Bh4 {[%emt 0:01:43]} Be7 {[%emt 0:02:03]} 13. Nf3 {[%emt 0:01:21]} Nxf3+ {[%emt 0:12:47]} 14. Qxf3 {[%emt 0:00:21]} d4 {[%emt 0:02:16]} 15. exd4 {[%emt 0:00:56]} cxd4 {[%emt 0:00:33]} 16. O-O-O {[%emt 0:00:11]} d3 {[%emt 0:05:28]} 17. Bxd3 {[%emt 0:00:57]} Bxd3 {[%emt 0:00:06]} 18. Rxd3 {[%emt 0:00:20]} Qc7 {[%emt 0:00:50]} 19. Bxf6 {[%emt 0:01:04]} Bxf6 {[%emt 0:00:06]} 20. Nd5 {[%emt 0:00:28]} Bg5+ {[%emt 0:00:09]} 21. Kb1 {[%emt 0:02:27]} Qe5 {[%emt 0:04:23]} 22. h4 {[%emt 0:01:58]} Bh6 {[%emt 0:06:34]} 23. Rhd1 {[%emt 0:01:15]} Rae8 {[%emt 0:01:18]} 24. g4 {[%emt 0:02:24]} f6 {[%emt 0:00:48]} 25. Ne3 {[%emt 0:02:55]} Bxe3 {[%emt 0:04:16]} 26. Rxe3 {[%emt 0:01:01]} Qh2 {[%emt 0:02:19]} 27. h5 {[%emt 0:05:01]} Re5 {[%emt 0:03:02]} 28. Rh1 {[%emt 0:04:06]} Rxe3 {[%emt 0:02:15]} 29. Qd5+ {[%emt 0:00:17]} 1-0

[Event "36th German Seniors-ch-65 2024"]
[Site "Bad Wildungen"]
[Date "2024.08.25"]
[Round "1.19"]
[White "Hassenrueck, Helmut"]
[Black "Zechel, Rolf-Ruediger"]
[Result "1-0"]
[ECO "A43"]
[WhiteElo "2136"]
[BlackElo "1885"]
[Annotator "RC"]
[PlyCount "69"]
[EventDate "2024.08.22"]
[EventType "swiss"]
[EventCountry "GER"]
[SourceTitle "playchess.com"]
[Source "ChessBase"]
[SourceQuality "1"]
[TimeControl "40/5400+30:1800+30"]

1. d4 {[%emt 0:00:04]} Nf6 {[%emt 0:00:11]} 2. Nf3 {[%emt 0:00:02]} c5 {[%emt 0:00:44]} 3. d5 {[%emt 0:00:03]} e6 {[%emt 0:00:38]} 4. Nc3 {[%emt 0:00:04]} exd5 {[%emt 0:01:28]} 5. Nxd5 {[%emt 0:00:04]} Nxd5 {[%emt 0:03:34]} 6. Qxd5 {[%emt 0:01:42]} Be7 {[%emt 0:01:18]} 7. e4 {[%emt 0:00:20]} O-O {[%emt 0:01:14]} 8. Bc4 {[%emt 0:00:38]} Nc6 {[%emt 0:02:09]} 9. c3 {[%emt 0:00:47]} d6 {[%emt 0:01:06]} 10. Qh5 {[%emt 0:06:01]} Be6 {[%emt 0:06:21]} 11. Bxe6 {[%emt 0:04:07]} fxe6 {[%emt 0:00:18]} 12. Ng5 {[%emt 0:01:14]} Bxg5 {[%emt 0:02:20]} 13. Bxg5 {[%emt 0:00:05]} Qe8 {[%emt 0:00:46]} 14. Qxe8 {[%emt 0:04:25]} Raxe8 {[%emt 0:01:15]} 15. Rd1 {[%emt 0:02:45]} d5 {[%emt 0:01:22]} 16. Be3 {[%emt 0:06:43]} d4 {[%emt 0:08:13]} 17. cxd4 {[%emt 0:01:56]} cxd4 {[%emt 0:02:13]} 18. Bxd4 {[%emt 0:01:35]} Rd8 {[%emt 0:00:46]} 19. Bc5 {[%emt 0:03:27]} Rxd1+ {[%emt 0:02:19]} 20. Kxd1 {[%emt 0:00:04]} Rd8+ {[%emt 0:00:36]} 21. Ke2 {[%emt 0:02:00]} Kf7 {[%emt 0:01:59]} 22. Rd1 {[%emt 0:03:22]} Rxd1 {[%emt 0:01:55]} 23. Kxd1 {[%emt 0:00:02]} b6 {[%emt 0:02:13]} 24. Be3 {[%emt 0:06:10]} Nb4 {[%emt 0:06:55]} 25. a3 {[%emt 0:01:14]} Nd3 {[%emt 0:02:33]} 26. b3 {[%emt 0:01:25]} Ne5 {[%emt 0:00:51]} 27. h3 {[%emt 0:00:44]} Nd7 {[%emt 0:01:16]} 28. Kc2 {[%emt 0:02:26]} h6 {[%emt 0:01:50]} 29. Kc3 {[%emt 0:04:12]} h5 {[%emt 0:03:28]} 30. a4 {[%emt 0:03:12]} a6 {[%emt 0:01:20]} 31. Bf4 {[%emt 0:09:42]} g6 {[%emt 0:04:40]} 32. Bd6 {[%emt 0:03:22]} e5 {[%emt 0:01:51]} 33. g3 {[%emt 0:10:54]} Ke6 {[%emt 0:01:43]} 34. Bc7 {[%emt 0:00:24]} g5 {[%emt 0:02:23]} 35. g4 {[%emt 0:04:16]} 1-0

[Event "36th German Seniors-ch-65 2024"]
[Site "Bad Wildungen"]
[Date "2024.08.25"]
[Round "1.20"]
[White "Ellerbrock, Manfred"]
[Black "Erler, Rainer"]
[Result "0-1"]
[ECO "D40"]
[WhiteElo "1884"]
[BlackElo "2122"]
[Annotator "RC"]
[PlyCount "52"]
[EventDate "2024.08.22"]
[EventType "swiss"]
[EventCountry "GER"]
[SourceTitle "playchess.com"]
[Source "ChessBase"]
[SourceQuality "1"]
[TimeControl "40/5400+30:1800+30"]

1. d4 {[%emt 0:00:06]} d5 {[%emt 0:15:22]} 2. c4 {[%emt 0:00:05]} e6 {[%emt 0:00:06]} 3. Nc3 {[%emt 0:00:06]} c5 {[%emt 0:00:04]} 4. e3 {[%emt 0:02:14]} Nf6 {[%emt 0:01:34]} 5. Nf3 {[%emt 0:00:10]} a6 {[%emt 0:00:05]} 6. a3 {[%emt 0:00:34]} dxc4 {[%emt 0:00:57]} 7. Bxc4 {[%emt 0:00:27]} b5 {[%emt 0:00:01]} 8. Be2 {[%emt 0:00:53]} Bb7 {[%emt 0:00:08]} 9. O-O {[%emt 0:00:36]} Nc6 {[%emt 0:00:32]} 10. dxc5 {[%emt 0:01:11]} Bxc5 {[%emt 0:00:12]} 11. b4 {[%emt 0:01:17]} Bd6 {[%emt 0:01:18]} 12. Bb2 {[%emt 0:01:21]} Qe7 {[%emt 0:02:35]} 13. Qb3 {[%emt 0:05:41]} O-O {[%emt 0:00:38]} 14. Rfd1 {[%emt 0:01:52]} Rac8 {[%emt 0:02:27]} 15. Rac1 {[%emt 0:02:04]} e5 {[%emt 0:14:54]} 16. Nd5 {[%emt 0:17:30]} Nxd5 {[%emt 0:57:37]} 17. Qxd5 {[%emt 0:00:10]} Nd4 {[%emt 0:00:00]} 18. Nxd4 {[%emt 0:05:05]} Bxd5 {[%emt 0:00:00]} 19. Rxc8 {[%emt 0:01:02]} Rxc8 {[%emt 0:00:00]} 20. Nf5 {[%emt 0:01:55]} Qg5 {[%emt 0:00:00]} 21. Ng3 {[%emt 0:06:39]} e4 {[%emt 0:00:00]} 22. h4 {[%emt 0:02:45]} Qxh4 {[%emt 0:00:00]} 23. Rxd5 {[%emt 0:06:18]} Bxg3 {[%emt 0:00:00]} 24. fxg3 {[%emt 0:00:25]} Qxg3 {[%emt 0:00:00]} 25. Bd4 {[%emt 0:01:39]} h6 {[%emt 0:00:00]} 26. Re5 {[%emt 0:00:58]} Rc2 {[%emt 0:00:00]} 0-1

[Event "36th German Seniors-ch-65 2024"]
[Site "Bad Wildungen"]
[Date "2024.08.25"]
[Round "1.21"]
[White "Kannenberg, Karl-Heinz"]
[Black "Nebel, Uwe"]
[Result "1/2-1/2"]
[ECO "D02"]
[WhiteElo "2121"]
[BlackElo "1884"]
[Annotator "RC"]
[PlyCount "32"]
[EventDate "2024.08.22"]
[EventType "swiss"]
[EventCountry "GER"]
[SourceTitle "playchess.com"]
[Source "ChessBase"]
[SourceQuality "1"]
[TimeControl "40/5400+30:1800+30"]

1. d4 {[%emt 0:00:05]} d5 {[%emt 0:00:17]} 2. Nf3 {[%emt 0:00:13]} Nf6 {[%emt 0:00:11]} 3. c3 {[%emt 0:00:28]} c6 {[%emt 0:00:43]} 4. Bf4 {[%emt 0:00:39]} Bf5 {[%emt 0:01:58]} 5. Qb3 {[%emt 0:00:58]} Qb6 {[%emt 0:00:20]} 6. Nbd2 {[%emt 0:00:30]} Nbd7 {[%emt 0:00:39]} 7. h3 {[%emt 0:02:01]} h6 {[%emt 0:04:52]} 8. e3 {[%emt 0:01:46]} g5 {[%emt 0:01:43]} 9. Bg3 {[%emt 0:00:54]} Bg7 {[%emt 0:07:34]} 10. Be2 {[%emt 0:02:36]} O-O {[%emt 0:04:01]} 11. Ne5 {[%emt 0:03:29]} Ne4 {[%emt 0:06:32]} 12. Nxd7 {[%emt 0:07:11]} Qxb3 {[%emt 0:09:16]} 13. axb3 {[%emt 0:08:45]} Nxg3 {[%emt 0:08:07]} 14. fxg3 {[%emt 0:00:39]} Bxd7 {[%emt 0:00:08]} 15. g4 {[%emt 0:03:22]} e5 {[%emt 0:04:38]} 16. O-O {[%emt 0:01:09]} exd4 {[%emt 0:07:17]} 1/2-1/2

[Event "36th German Seniors-ch-65 2024"]
[Site "Bad Wildungen"]
[Date "2024.08.25"]
[Round "1.22"]
[White "Wagner, Ingolf"]
[Black "Schrems, Hermann"]
[Result "0-1"]
[ECO "D04"]
[WhiteElo "1883"]
[BlackElo "2118"]
[Annotator "RC"]
[PlyCount "109"]
[EventDate "2024.08.22"]
[EventType "swiss"]
[EventCountry "GER"]
[SourceTitle "playchess.com"]
[Source "ChessBase"]
[SourceQuality "1"]
[TimeControl "40/5400+30:1800+30"]

1. d4 {[%emt 0:00:04]} d5 {[%emt 0:00:06]} 2. Nf3 {[%emt 0:00:05]} Nf6 {[%emt 0:00:10]} 3. e3 {[%emt 0:00:29]} g6 {[%emt 0:00:17]} 4. Bd3 {[%emt 0:00:23]} Bg7 {[%emt 0:00:07]} 5. h3 {[%emt 0:00:11]} O-O {[%emt 0:01:15]} 6. Nbd2 {[%emt 0:01:25]} c5 {[%emt 0:01:16]} 7. b3 {[%emt 0:01:28]} cxd4 {[%emt 0:01:17]} 8. exd4 {[%emt 0:00:03]} Nc6 {[%emt 0:00:45]} 9. Bb2 {[%emt 0:03:53]} Nb4 {[%emt 0:00:24]} 10. Ne5 {[%emt 0:04:16]} Nxd3+ {[%emt 0:00:47]} 11. Nxd3 {[%emt 0:00:36]} Bf5 {[%emt 0:00:23]} 12. Qe2 {[%emt 0:07:57]} Rc8 {[%emt 0:00:17]} 13. c3 {[%emt 0:02:41]} Re8 {[%emt 0:05:07]} 14. Ne5 {[%emt 0:04:43]} Rc7 {[%emt 0:05:58]} 15. O-O {[%emt 0:03:59]} Nd7 {[%emt 0:07:10]} 16. g4 {[%emt 0:11:05]} Nxe5 {[%emt 0:01:59]} 17. gxf5 {[%emt 0:02:43]} Nc6 {[%emt 0:00:08]} 18. Qg4 {[%emt 0:03:05]} Qd7 {[%emt 0:04:03]} 19. fxg6 {[%emt 0:09:09]} hxg6 {[%emt 0:00:07]} 20. Qxd7 {[%emt 0:03:26]} Rxd7 {[%emt 0:00:06]} 21. Nf3 {[%emt 0:00:52]} Bf6 {[%emt 0:03:45]} 22. Rad1 {[%emt 0:02:38]} b5 {[%emt 0:01:43]} 23. Ba3 {[%emt 0:01:43]} Rc8 {[%emt 0:00:29]} 24. Bc5 {[%emt 0:01:58]} e6 {[%emt 0:05:34]} 25. Rfe1 {[%emt 0:03:54]} Ne7 {[%emt 0:00:37]} 26. Kg2 {[%emt 0:04:25]} Nf5 {[%emt 0:01:22]} 27. b4 {[%emt 0:02:43]} Nd6 {[%emt 0:15:17]} 28. Rd3 {[%emt 0:05:28]} Nc4 {[%emt 0:02:41]} 29. Re2 {[%emt 0:05:19]} Ra8 {[%emt 0:01:17]} 30. Nd2 {[%emt 0:00:17]} Kg7 {[%emt 0:10:24]} 31. Nxc4 {[%emt 0:01:13]} dxc4 {[%emt 0:00:09]} 32. Rde3 {[%emt 0:02:49]} Rd5 {[%emt 0:00:52]} 33. a4 {[%emt 0:02:11]} a6 {[%emt 0:02:00]} 34. Ra2 {[%emt 0:00:19]} Rdd8 {[%emt 0:04:26]} 35. Re1 {[%emt 0:00:58]} Rh8 {[%emt 0:06:39]} 36. axb5 {[%emt 0:01:45]} axb5 {[%emt 0:00:01]} 37. Rea1 {[%emt 0:00:21]} Rxa2 {[%emt 0:00:30]} 38. Rxa2 {[%emt 0:00:30]} e5 {[%emt 0:04:41]} 39. Ra5 {[%emt 0:03:19]} exd4 {[%emt 0:00:11]} 40. cxd4 {[%emt 0:02:34]} Rd8 {[%emt 0:00:30]} 41. Kf3 {[%emt 0:30:30]} Bxd4 {[%emt 0:30:30]} 42. Bxd4+ {[%emt 0:00:30]} Rxd4 {[%emt 0:00:30]} 43. Rxb5 {[%emt 0:00:30]} c3 {[%emt 0:00:30]} 44. Rc5 {[%emt 0:00:30]} Rxb4 {[%emt 0:00:30]} 45. Rxc3 {[%emt 0:00:30]} g5 {[%emt 0:00:30]} 46. Kg3 {[%emt 0:00:30]} Kg6 {[%emt 0:00:30]} 47. f3 {[%emt 0:00:30]} f5 {[%emt 0:00:30]} 48. Ra3 {[%emt 0:00:30]} Kh5 {[%emt 0:00:30]} 49. Ra8 {[%emt 0:00:30]} f4+ {[%emt 0:00:30]} 50. Kg2 {[%emt 0:00:30]} Rb2+ {[%emt 0:00:30]} 51. Kh1 {[%emt 0:00:30]} Kh4 {[%emt 0:00:30]} 52. Rh8+ {[%emt 0:00:30]} Kg3 {[%emt 0:00:30]} 53. Kg1 {[%emt 0:00:30]} Kxf3 {[%emt 0:00:30]} 54. Kf1 {[%emt 0:00:30]} Kg3 {[%emt 0:00:30]} 55. Kg1 {[%emt 0:00:00]} 0-1

[Event "36th German Seniors-ch-65 2024"]
[Site "Bad Wildungen"]
[Date "2024.08.25"]
[Round "2.1"]
[White "Ellenberg, Ekkehard"]
[Black "Chevelevitch, Evgueni"]
[Result "0-1"]
[ECO "C78"]
[WhiteElo "1998"]
[BlackElo "2334"]
[Annotator "RC"]
[PlyCount "118"]
[EventDate "2024.08.22"]
[EventType "swiss"]
[EventCountry "GER"]
[SourceTitle "playchess.com"]
[Source "ChessBase"]
[SourceQuality "1"]
[TimeControl "40/5400+30:1800+30"]

1. e4 {[%emt 0:00:08]} e5 {[%emt 0:00:05]} 2. Nf3 {[%emt 0:00:16]} Nc6 {[%emt 0:00:12]} 3. Bb5 {[%emt 0:00:28]} a6 {[%emt 0:00:09]} 4. Ba4 {[%emt 0:00:25]} Nf6 {[%emt 0:00:08]} 5. d3 {[%emt 0:00:23]} b5 {[%emt 0:00:53]} 6. Bb3 {[%emt 0:00:20]} Bc5 {[%emt 0:00:16]} 7. O-O {[%emt 0:01:22]} O-O {[%emt 0:01:01]} 8. c3 {[%emt 0:00:58]} d6 {[%emt 0:02:00]} 9. h3 {[%emt 0:01:45]} h6 {[%emt 0:02:33]} 10. Re1 {[%emt 0:02:53]} Bb6 {[%emt 0:00:40]} 11. a4 {[%emt 0:03:58]} Bd7 {[%emt 0:03:02]} 12. Bc2 {[%emt 0:02:19]} Ne7 {[%emt 0:01:12]} 13. d4 {[%emt 0:04:42]} Ng6 {[%emt 0:00:31]} 14. Be3 {[%emt 0:01:35]} c5 {[%emt 0:06:11]} 15. dxe5 {[%emt 0:09:53]} dxe5 {[%emt 0:00:21]} 16. axb5 {[%emt 0:00:35]} axb5 {[%emt 0:01:43]} 17. Rxa8 {[%emt 0:00:47]} Qxa8 {[%emt 0:00:02]} 18. Qd6 {[%emt 0:00:23]} Qc6 {[%emt 0:01:05]} 19. Rd1 {[%emt 0:01:55]} Ra8 {[%emt 0:14:29]} 20. Na3 {[%emt 0:05:21]} Qxd6 {[%emt 0:01:20]} 21. Rxd6 {[%emt 0:00:08]} Bc7 {[%emt 0:00:07]} 22. Rd1 {[%emt 0:01:42]} c4 {[%emt 0:01:08]} 23. Bc5 {[%emt 0:02:39]} Bc6 {[%emt 0:01:55]} 24. Bd6 {[%emt 0:04:29]} Bxd6 {[%emt 0:03:55]} 25. Rxd6 {[%emt 0:00:31]} Rc8 {[%emt 0:00:09]} 26. Rd2 {[%emt 0:01:31]} Kf8 {[%emt 0:05:14]} 27. Ne1 {[%emt 0:07:35]} Ke7 {[%emt 0:01:53]} 28. f3 {[%emt 0:00:53]} h5 {[%emt 0:00:16]} 29. Kf2 {[%emt 0:01:56]} h4 {[%emt 0:00:23]} 30. Bd1 {[%emt 0:02:17]} Nf4 {[%emt 0:06:18]} 31. Be2 {[%emt 0:03:42]} Nd7 {[%emt 0:03:44]} 32. Nac2 {[%emt 0:02:18]} Nc5 {[%emt 0:12:23]} 33. Nb4 {[%emt 0:00:46]} Bd7 {[%emt 0:07:00]} 34. Nec2 {[%emt 0:07:19]} f6 {[%emt 0:07:08]} 35. Ne3 {[%emt 0:01:32]} Be6 {[%emt 0:02:22]} 36. Bf1 {[%emt 0:06:12]} Na4 {[%emt 0:08:17]} 37. Ke1 {[%emt 0:04:58]} Ke8 {[%emt 0:05:24]} 38. Kd1 {[%emt 0:08:14]} Rd8 {[%emt 0:00:09]} 39. Rxd8+ {[%emt 0:03:00]} Kxd8 {[%emt 0:00:01]} 40. Kc2 {[%emt 0:00:28]} Ke7 {[%emt 0:01:16]} 41. Nbd5+ {[%emt 0:36:01]} Bxd5 {[%emt 0:33:24]} 42. exd5 {[%emt 0:00:21]} Nc5 {[%emt 0:00:00]} 43. Nf5+ {[%emt 0:00:00]} Kf8 {[%emt 0:00:00]} 44. Nd6 {[%emt 0:00:00]} Nxd5 {[%emt 0:00:00]} 45. Kd2 {[%emt 0:00:00]} Nc7 {[%emt 0:00:00]} 46. Nxc4 {[%emt 0:00:00]} bxc4 {[%emt 0:00:00]} 47. Bxc4 {[%emt 0:00:00]} Ke7 {[%emt 0:00:00]} 48. b4 {[%emt 0:00:00]} N5e6 {[%emt 0:00:00]} 49. b5 {[%emt 0:00:00]} Na8 {[%emt 0:00:00]} 50. Ke3 {[%emt 0:00:00]} Nf4 {[%emt 0:00:00]} 51. Bf1 {[%emt 0:00:00]} Nb6 {[%emt 0:00:00]} 52. Kf2 {[%emt 0:00:00]} Nh5 {[%emt 0:00:00]} 53. Ke3 {[%emt 0:00:00]} Kd6 {[%emt 0:00:00]} 54. c4 {[%emt 0:00:00]} Kc5 {[%emt 0:00:00]} 55. Kf2 {[%emt 0:00:00]} Kd4 {[%emt 0:00:00]} 56. c5 {[%emt 0:01:25]} Kxc5 {[%emt 0:00:00]} 57. Bd3 {[%emt 0:00:11]} Nd5 {[%emt 0:00:00]} 58. Bg6 {[%emt 0:01:44]} Ng3 {[%emt 0:00:00]} 59. Bf7 {[%emt 0:02:07]} g5 {[%emt 0:00:00]} 0-1

[Event "36th German Seniors-ch-65 2024"]
[Site "Bad Wildungen"]
[Date "2024.08.25"]
[Round "2.3"]
[White "Juhnke, Juergen"]
[Black "Roettinger, Eugen"]
[Result "1-0"]
[ECO "A40"]
[WhiteElo "2259"]
[BlackElo "1990"]
[Annotator "RC"]
[PlyCount "58"]
[EventDate "2024.08.22"]
[EventType "swiss"]
[EventCountry "GER"]
[SourceTitle "playchess.com"]
[Source "ChessBase"]
[SourceQuality "1"]
[TimeControl "40/5400+30:1800+30"]

1. e4 {[%emt 0:00:03]} c5 {[%emt 0:00:33]} 2. Nf3 {[%emt 0:00:06]} Nc6 {[%emt 0:01:01]} 3. d4 {[%emt 0:00:10]} cxd4 {[%emt 0:01:22]} 4. Nxd4 {[%emt 0:00:02]} Qb6 {[%emt 0:02:43]} 5. Nb3 {[%emt 0:00:29]} g6 {[%emt 0:00:24]} 6. c4 {[%emt 0:04:07]} Bg7 {[%emt 0:01:37]} 7. Nc3 {[%emt 0:01:10]} Bxc3+ {[%emt 0:01:37]} 8. bxc3 {[%emt 0:00:07]} Nf6 {[%emt 0:00:09]} 9. f3 {[%emt 0:04:41]} d6 {[%emt 0:02:05]} 10. c5 {[%emt 0:10:04]} dxc5 {[%emt 0:06:36]} 11. Be3 {[%emt 0:00:22]} O-O {[%emt 0:02:30]} 12. Bxc5 {[%emt 0:06:04]} Qc7 {[%emt 0:00:23]} 13. Be2 {[%emt 0:07:57]} Nh5 {[%emt 0:21:55]} 14. O-O {[%emt 0:09:08]} Nf4 {[%emt 0:04:11]} 15. Be3 {[%emt 0:06:06]} Rd8 {[%emt 0:05:29]} 16. Qe1 {[%emt 0:01:37]} Nxe2+ {[%emt 0:15:36]} 17. Qxe2 {[%emt 0:00:07]} Na5 {[%emt 0:03:10]} 18. Rfd1 {[%emt 0:21:04]} Nxb3 {[%emt 0:03:24]} 19. axb3 {[%emt 0:01:07]} a6 {[%emt 0:11:31]} 20. Rxd8+ {[%emt 0:04:17]} Qxd8 {[%emt 0:00:01]} 21. Rd1 {[%emt 0:00:14]} Qc7 {[%emt 0:01:10]} 22. Qd3 {[%emt 0:01:00]} Be6 {[%emt 0:00:40]} 23. c4 {[%emt 0:00:23]} Rc8 {[%emt 0:01:04]} 24. f4 {[%emt 0:01:41]} Bg4 {[%emt 0:01:56]} 25. Rd2 {[%emt 0:00:12]} e5 {[%emt 0:00:48]} 26. f5 {[%emt 0:00:41]} gxf5 {[%emt 0:01:40]} 27. exf5 {[%emt 0:01:51]} Qc6 {[%emt 0:01:19]} 28. h3 {[%emt 0:01:12]} e4 {[%emt 0:00:06]} 29. Qf1 {[%emt 0:00:09]} Rb8 {[%emt 0:10:00]} 1-0

[Event "36th German Seniors-ch-65 2024"]
[Site "Bad Wildungen"]
[Date "2024.08.25"]
[Round "2.5"]
[White "Rosen, Bernd"]
[Black "Scharping, Hans-Martin"]
[Result "1-0"]
[ECO "A30"]
[WhiteElo "2245"]
[BlackElo "1978"]
[Annotator "RC"]
[PlyCount "89"]
[EventDate "2024.08.22"]
[EventType "swiss"]
[EventCountry "GER"]
[SourceTitle "playchess.com"]
[Source "ChessBase"]
[SourceQuality "1"]
[TimeControl "40/5400+30:1800+30"]

1. c4 {[%emt 0:00:06]} e6 {[%emt 0:00:09]} 2. g3 {[%emt 0:00:09]} d5 {[%emt 0:00:12]} 3. Bg2 {[%emt 0:00:05]} c5 {[%emt 0:01:28]} 4. Nf3 {[%emt 0:00:31]} d4 {[%emt 0:01:00]} 5. b4 {[%emt 0:01:57]} cxb4 {[%emt 0:02:39]} 6. a3 {[%emt 0:00:25]} Nc6 {[%emt 0:00:21]} 7. O-O {[%emt 0:02:23]} Nf6 {[%emt 0:00:19]} 8. d3 {[%emt 0:00:40]} Be7 {[%emt 0:02:14]} 9. axb4 {[%emt 0:00:14]} Bxb4 {[%emt 0:00:46]} 10. Ba3 {[%emt 0:00:12]} Bxa3 {[%emt 0:03:54]} 11. Nxa3 {[%emt 0:00:34]} O-O {[%emt 0:00:23]} 12. Qb3 {[%emt 1:29:14]} Rb8 {[%emt 0:02:53]} 13. Nd2 {[%emt 0:00:00]} Bd7 {[%emt 0:05:44]} 14. Nb5 {[%emt 0:00:00]} Qe7 {[%emt 0:09:14]} 15. Nxa7 {[%emt 0:00:00]} Rfd8 {[%emt 0:02:05]} 16. Rfb1 {[%emt 0:00:00]} Qc5 {[%emt 0:03:30]} 17. Qb6 {[%emt 0:00:00]} Qxb6 {[%emt 0:00:44]} 18. Rxb6 {[%emt 0:00:00]} Kf8 {[%emt 0:10:58]} 19. Nb3 {[%emt 0:00:00]} Ra8 {[%emt 0:09:44]} 20. Rxb7 {[%emt 0:00:00]} Rxa7 {[%emt 0:00:48]} 21. Raxa7 {[%emt 0:00:00]} Nxa7 {[%emt 0:00:02]} 22. Rxa7 {[%emt 0:00:00]} Rb8 {[%emt 0:00:27]} 23. Rb7 {[%emt 0:00:00]} Rxb7 {[%emt 0:01:07]} 24. Bxb7 {[%emt 0:00:00]} e5 {[%emt 0:00:27]} 25. f4 {[%emt 0:00:00]} exf4 {[%emt 0:07:12]} 26. gxf4 {[%emt 0:00:00]} Nh5 {[%emt 0:00:11]} 27. Nxd4 {[%emt 0:00:00]} Nxf4 {[%emt 0:01:58]} 28. c5 {[%emt 0:00:00]} Bg4 {[%emt 0:00:43]} 29. c6 {[%emt 0:00:00]} Nd5 {[%emt 0:00:16]} 30. Nb5 {[%emt 0:00:00]} Bxe2 {[%emt 0:02:51]} 31. c7 {[%emt 0:00:00]} Nxc7 {[%emt 0:00:09]} 32. Nxc7 {[%emt 0:00:00]} Bxd3 {[%emt 0:00:08]} 33. Kf2 {[%emt 0:00:00]} g5 {[%emt 0:03:15]} 34. Ke3 {[%emt 0:00:00]} Bf1 {[%emt 0:00:12]} 35. Be4 {[%emt 0:00:00]} h6 {[%emt 0:01:27]} 36. Kd4 {[%emt 0:00:00]} f6 {[%emt 0:02:59]} 37. Nd5 {[%emt 0:00:00]} Kf7 {[%emt 0:00:30]} 38. Ne3 {[%emt 0:00:00]} Ba6 {[%emt 0:02:08]} 39. Bf5 {[%emt 0:00:00]} Bb7 {[%emt 0:00:21]} 40. Kc5 {[%emt 0:00:00]} Bf3 {[%emt 0:01:34]} 41. Kd6 {[%emt 0:21:11]} h5 {[%emt 0:32:01]} 42. Bd7 {[%emt 0:06:08]} g4 {[%emt 0:04:23]} 43. Bf5 {[%emt 0:04:03]} Be2 {[%emt 0:02:42]} 44. Ng2 {[%emt 0:01:09]} Bc4 {[%emt 0:06:26]} 45. Nf4 {[%emt 0:01:44]} 1-0